fUSD/lending_fUSD_20250620
["ID","MTS","AMOUNT","RATE_DAILY","PERIOD"]
[366728092,1750421306448,-151.0,0.00025473,7]
[366728093,1750421306472,-96.0727895,0.00025473,7]
[366728094,1750421306563,-54.9272105,0.00025473,7]
[366728095,1750421306588,-151.0,0.00025473,7]
[366728096,1750421306614,-150.0,0.00025483,4]
[366728097,1750421306638,-548.69313633,0.00025483,4]
[366728098,1750421306661,-150.23871935,0.00025483,4]
[366728099,1750421306685,-150.0,0.00025483,4]
[366728100,1750421306710,-500.0,0.00025483,4]
[366728101,1750421306735,-150.0,0.00025483,4]
[366728102,1750421306758,-150.0,0.00025483,4]
[366728103,1750421306783,-150.0,0.00025483,4]
[366728104,1750421306806,-500.0,0.00025483,4]
[366728105,1750421306830,-500.0,0.00025483,4]
[366728106,1750421306854,-222.12700468,0.00025483,4]
[366728107,1750421306878,-500.0,0.00025483,2]
[366728108,1750421306903,-150.0,0.00025483,4]
[366728109,1750421306926,-150.0,0.00025483,4]
[366728110,1750421306950,-150.0,0.00025483,4]
[366728111,1750421306974,-194.91701195,0.00025494,4]
[366728112,1750421306999,-2030.296672,0.00025495,2]
[366728113,1750421307080,490.0,0.00025465,4]
[366728114,1750421307133,490.0,0.00025456,4]
[366728115,1750421307216,508.87,0.00025465,4]
[366728116,1750421307745,1958.93024519,0.000221,5]
[366728117,1750421307769,3604.06975481,0.000221,5]
[366728118,1750421336896,-349.0,0.000259,14]
[366728119,1750421351528,203.0,0.00022941,2]
[366728120,1750421381412,247.0,0.00022941,2]
[366728130,1750421432288,-151.0,0.0002431,2]
[366728131,1750421432300,-151.0,0.0002431,2]
[366728132,1750421432312,-200.0,0.00024623,7]
[366728133,1750421432323,-166.65,0.00025407,2]
[366728134,1750421432333,-247.64806093,0.00025447,5]
[366728135,1750421432347,-696.8401546,0.00025447,5]
[366728136,1750421432360,-354.18459024,0.00025447,5]
[366728137,1750421432372,-1165.78538517,0.00025447,5]
[366728138,1750421432381,-380.19251542,0.00025455,2]
[366728139,1750421432397,-819.80748458,0.00025455,2]
[366728140,1750421432407,-490.0,0.00025456,4]
[366728141,1750421432417,-490.0,0.00025456,4]
[366728142,1750421432426,-490.0,0.00025456,4]
[366728143,1750421432436,-490.0,0.00025456,4]
[366728144,1750421432446,-490.0,0.00025456,4]
[366728145,1750421432456,-490.0,0.00025456,4]
[366728146,1750421432467,-490.0,0.00025456,4]
[366728147,1750421432476,-490.0,0.00025456,4]
[366728148,1750421432486,-490.0,0.00025456,4]
[366728149,1750421432496,-490.0,0.00025456,4]
[366728150,1750421432506,-490.0,0.00025456,4]
[366728151,1750421432517,-490.0,0.00025456,4]
[366728152,1750421432528,-490.0,0.00025456,4]
[366728153,1750421432538,-490.0,0.00025456,4]
[366728154,1750421432548,-490.0,0.00025456,4]
[366728155,1750421432559,-490.21,0.00025456,4]
[366728156,1750421432568,-490.0,0.00025456,4]
[366728157,1750421432578,-490.0,0.00025456,4]
[366728158,1750421432588,-580.81,0.00025456,4]
[366728159,1750421432597,-490.0,0.00025456,4]
[366728160,1750421432607,-490.0,0.00025456,4]
[366728161,1750421432617,-718.35,0.00025456,4]
[366728162,1750421432627,-513.93,0.00025456,4]
[366728163,1750421432637,-1146.27,0.00025456,4]
[366728164,1750421432647,-490.0,0.00025456,4]
[366728165,1750421432657,-748.22,0.00025456,4]
[366728166,1750421432667,-490.0,0.00025456,4]
[366728167,1750421432676,-490.0,0.00025456,4]
[366728168,1750421432686,-490.0,0.00025456,4]
[366728169,1750421432696,-490.0,0.00025456,4]
[366728170,1750421432710,-490.0,0.00025456,4]
[366728171,1750421432720,-490.0,0.00025456,4]
[366728172,1750421432730,-490.0,0.00025456,4]
[366728173,1750421432740,-490.0,0.00025456,4]
[366728174,1750421432751,-490.0,0.00025456,4]
[366728175,1750421432760,-490.0,0.00025464,4]
[366728177,1750421432770,-826.49009021,0.00025464,4]
[366728179,1750421432783,-1809.29990979,0.00025464,4]
[366728181,1750421432794,-490.0,0.00025464,4]
[366728183,1750421432803,-490.0,0.00025464,4]
[366728185,1750421432812,-490.0,0.00025464,4]
[366728187,1750421432822,-490.0,0.00025464,4]
[366728189,1750421432831,-490.0,0.00025464,4]
[366728191,1750421432840,-1524.53,0.00025464,4]
[366728193,1750421432850,-490.0,0.00025464,4]
[366728194,1750421432860,-392.12948765,0.00025464,4]
[366728203,1750421432947,-97.87051235,0.00025464,4]
[366728205,1750421432957,-775.92,0.00025464,4]
[366728207,1750421432966,-400.85,0.00025464,4]
[366728209,1750421432975,-490.0,0.00025464,4]
[366728211,1750421432985,-490.0,0.00025464,4]
[366728213,1750421432995,-490.0,0.00025464,4]
[366728215,1750421433005,-490.0,0.00025464,4]
[366728217,1750421433015,-490.0,0.00025464,4]
[366728219,1750421433025,-1070.15,0.00025464,4]
[366728221,1750421433037,-490.0,0.00025464,4]
[366728223,1750421433049,-1384.12,0.00025464,4]
[366728225,1750421433059,-1442.62,0.00025464,2]
[366728227,1750421433069,-427.76986138,0.00025465,4]
[366728229,1750421433079,-490.0,0.00025465,4]
[366728231,1750421433088,-452.82037029,0.00025465,4]
[366728234,1750421433105,-37.17962971,0.00025465,4]
[366728236,1750421433115,-490.0,0.00025465,4]
[366728238,1750421433125,-402.78083229,0.00025465,4]
[366728240,1750421433137,-87.21916771,0.00025465,4]
[366728242,1750421433147,-222.85622144,0.00025465,4]
[366728318,1750421438250,-784.53,0.00025456,4]
[366728319,1750421438260,-270.03588917,0.00025464,4]
[366728320,1750421438271,-219.96411083,0.00025464,4]
[366728321,1750421438281,-307.12055169,0.00025465,4]
[366728322,1750421438292,-250.97874506,0.00025465,4]
[366728323,1750421438312,-123.54448181,0.00025465,4]
[366728324,1750421438322,-490.0,0.00025465,4]
[366728325,1750421438331,-490.0,0.00025465,4]
[366728326,1750421438341,-490.0,0.00025465,4]
[366728327,1750421438351,-490.0,0.00025465,4]
[366728328,1750421438361,-490.0,0.00025465,4]
[366728329,1750421438370,-170.71118626,0.00025465,4]
[366728330,1750421438388,-319.28881374,0.00025465,4]
[366728331,1750421438399,-490.0,0.00025465,4]
[366728332,1750421438409,-490.0,0.00025465,4]
[366728333,1750421438419,-490.0,0.00025465,4]
[366728334,1750421438429,-490.0,0.00025465,4]
[366728335,1750421438727,-31.87118626,0.00025465,4]
[366728339,1750421440347,-272.49230327,0.00025465,4]
[366728350,1750421453726,-2.26085009,0.00025465,4]
[366728351,1750421454008,-183.37566038,0.00025465,4]
[366728352,1750421454018,-347.52942632,0.00025465,4]
[366728353,1750421454031,-142.47057368,0.00025465,4]
[366728354,1750421454040,-502.76205022,0.00025465,4]
[366728355,1750421454050,-490.0,0.00025465,4]
[366728356,1750421454060,-833.6,0.00025465,4]
[366728357,1750421454069,-1049.7,0.00025465,4]
[366728358,1750421454079,-415.9073761,0.00025465,4]
[366728359,1750421454091,-74.0926239,0.00025465,4]
[366728360,1750421454100,-490.0,0.00025465,4]
[366728361,1750421454110,-347.84642713,0.00025465,4]
[366728362,1750421454130,-142.15357287,0.00025465,4]
[366728363,1750421454139,-122.63291991,0.00025465,4]
[366728364,1750421454660,-367.36708009,0.00025465,4]
[366728365,1750421454671,-114.10389793,0.00025465,4]
[366728366,1750421454683,-375.89610207,0.00025465,4]
[366728367,1750421454693,-301.36,0.00025465,4]
[366728368,1750421454704,-490.0,0.00025465,4]
[366728369,1750421454717,-490.0,0.00025465,4]
[366728370,1750421454727,-490.0,0.00025465,4]
[366728371,1750421454736,-490.0,0.00025465,4]
[366728372,1750421454746,-490.0,0.00025465,4]
[366728373,1750421454757,-490.0,0.00025465,4]
[366728374,1750421454767,-490.0,0.00025465,4]
[366728375,1750421454777,-490.0,0.00025465,4]
[366728376,1750421454787,-490.0,0.00025465,4]
[366728377,1750421454797,-490.0,0.00025465,4]
[366728378,1750421454807,-742.59,0.00025465,4]
[366728379,1750421454817,-490.0,0.00025465,4]
[366728380,1750421454827,-490.0,0.00025465,4]
[366728381,1750421454838,-490.0,0.00025465,4]
[366728382,1750421454848,-202.77,0.00025465,4]
[366728383,1750421454858,-774.77,0.00025465,4]
[366728384,1750421454868,-490.0,0.00025465,4]
[366728385,1750421454879,-490.0,0.00025465,4]
[366728386,1750421454888,-490.0,0.00025465,4]
[366728387,1750421454898,-7966.95,0.00025465,4]
[366728388,1750421454908,-490.0,0.00025465,4]
[366728389,1750421454918,-490.0,0.00025465,4]
[366728390,1750421454928,-490.0,0.00025465,4]
[366728391,1750421454938,-490.0,0.00025465,4]
[366728392,1750421454948,-490.0,0.00025465,4]
[366728393,1750421454958,-490.7111582,0.00025465,4]
[366728394,1750421454968,-490.0,0.00025465,4]
[366728395,1750421454978,-490.0,0.00025465,4]
[366728396,1750421454988,-490.0,0.00025465,4]
[366728397,1750421454999,-490.0,0.00025465,4]
[366728398,1750421455009,-490.0,0.00025465,4]
[366728399,1750421455019,-490.0,0.00025465,4]
[366728400,1750421455029,-1034.49,0.00025465,4]
[366728401,1750421455041,-490.0,0.00025465,4]
[366728402,1750421455051,-490.0,0.00025465,4]
[366728403,1750421455062,-490.0,0.00025465,4]
[366728404,1750421455072,-267.1,0.00025465,4]
[366728405,1750421455082,-490.0,0.00025465,4]
[366728406,1750421455092,-490.0,0.00025465,4]
[366728407,1750421455102,-490.0,0.00025465,4]
[366728408,1750421455113,-490.0,0.00025465,4]
[366728409,1750421455123,-490.0,0.00025465,4]
[366728410,1750421455134,-490.0,0.00025465,4]
[366728411,1750421455144,-490.0,0.00025465,4]
[366728412,1750421455154,-490.0,0.00025465,4]
[366728413,1750421455165,-577.85,0.00025465,4]
[366728414,1750421455175,-490.0,0.00025465,4]
[366728415,1750421455186,-490.0,0.00025465,4]
[366728416,1750421455196,-490.0,0.00025465,4]
[366728417,1750421455206,-669.88,0.00025465,4]
[366728418,1750421455216,-490.0,0.00025465,4]
[366728419,1750421455226,-508.32,0.00025465,4]
[366728420,1750421455237,-490.0,0.00025465,4]
[366728421,1750421455247,-490.0,0.00025465,4]
[366728422,1750421455258,-490.0,0.00025465,4]
[366728423,1750421455268,-490.0,0.00025465,4]
[366728424,1750421455278,-490.0,0.00025465,4]
[366728425,1750421455288,-490.0,0.00025465,4]
[366728426,1750421455298,-490.0,0.00025465,4]
[366728427,1750421455308,-490.0,0.00025465,4]
[366728428,1750421455318,-490.0,0.00025465,4]
[366728429,1750421455328,-490.0,0.00025465,4]
[366728430,1750421455339,-490.0,0.00025465,4]
[366728431,1750421455349,-490.0,0.00025465,4]
[366728432,1750421455359,-490.0,0.00025465,4]
[366728433,1750421455369,-490.0,0.00025465,4]
[366728434,1750421455379,-3318.24,0.00025465,4]
[366728435,1750421455389,-490.0,0.00025465,4]
[366728436,1750421455399,-490.0,0.00025465,4]
[366728437,1750421455411,-562.41,0.00025465,4]
[366728438,1750421455421,-490.0,0.00025465,4]
[366728439,1750421455431,-1373.28,0.00025465,4]
[366728440,1750421455441,-490.0,0.00025465,4]
[366728441,1750421455451,-499.87537334,0.00025465,4]
[366728442,1750421455462,-666.78,0.00025465,4]
[366728443,1750421455472,-490.0,0.00025465,4]
[366728444,1750421455482,-490.0,0.00025465,4]
[366728445,1750421455492,-490.0,0.00025465,4]
[366728446,1750421455502,-1204.75,0.00025465,4]
[366728447,1750421455511,-490.0,0.00025465,4]
[366728448,1750421455521,-490.0,0.00025465,4]
[366728449,1750421455531,-490.0,0.00025465,4]
[366728450,1750421455542,-490.0,0.00025465,4]
[366728451,1750421455552,-490.0,0.00025465,4]
[366728452,1750421455563,-1008.69230574,0.00025465,2]
[366728453,1750421455573,-2246.94,0.00025465,4]
[366728454,1750421455584,-490.0,0.00025465,4]
[366728455,1750421455594,-490.0,0.00025465,4]
[366728456,1750421455604,-490.0,0.00025465,4]
[366728457,1750421455615,-1307.27,0.00025465,4]
[366728458,1750421455625,-490.0,0.00025465,4]
[366728459,1750421455635,-1944.44444,0.00025494,2]
[366728460,1750421455645,-152.09827798,0.00025495,2]
[366728461,1750421455656,-150.0,0.00025511,4]
[366728462,1750421455666,-150.0,0.00025511,4]
[366728463,1750421455676,-500.0,0.00025511,4]
[366728464,1750421455686,-156.1604607,0.00025511,4]
[366728465,1750421455696,-151.55347305,0.00025511,4]
[366728466,1750421455708,-223.4708251,0.00025511,4]
[366728467,1750421455719,-150.0,0.00025511,4]
[366728468,1750421455730,-500.0,0.00025511,4]
[366728469,1750421455740,-471.17233731,0.00025518,2]
[366728470,1750421455751,-200.0,0.00025538,4]
[366728471,1750421455761,-150.0,0.00025538,4]
[366728472,1750421455771,-500.0,0.00025538,4]
[366728473,1750421455782,-2105.41764886,0.0002555,2]
[366728474,1750421455792,-150.0,0.00025566,4]
[366728475,1750421455803,-500.0,0.00025566,4]
[366728476,1750421455812,-163.53361839,0.00025582,2]
[366728477,1750421455826,-250.0,0.00025593,4]
[366728478,1750421455836,-306.13282827,0.00025593,4]
[366728479,1750421455847,-2183.31810187,0.00025605,2]
[366728480,1750421455857,-837.06509906,0.00025629,2]
[366728481,1750421455867,-154.46267777,0.00025639,2]
[366728482,1750421455877,-666.55024429,0.00025639,7]
[366728483,1750421455887,-157.75583219,0.00025641,2]
[366728484,1750421455897,-2264.10087164,0.0002566,2]
[366728485,1750421455908,-150.0,0.0002566,2]
[366728486,1750421455918,-150.0,0.0002566,2]
[366728487,1750421455929,-500.0,0.0002566,2]
[366728488,1750421455939,-150.0,0.0002566,2]
[366728489,1750421455948,-500.0,0.0002566,2]
[366728490,1750421455959,-171.99834756,0.0002566,2]
[366728491,1750421455970,-153.2539826,0.0002566,2]
[366728492,1750421455979,-150.0,0.0002566,2]
[366728493,1750421455990,-150.0,0.0002566,2]
[366728494,1750421456000,-150.0,0.0002566,2]
[366728495,1750421456010,-150.0,0.0002566,2]
[366728496,1750421456020,-165.63971983,0.0002566,2]
[366728497,1750421456031,-159.90616622,0.0002566,2]
[366728498,1750421456042,-500.0,0.0002566,2]
[366728499,1750421456052,-150.0,0.00025687,2]
[366728500,1750421456062,-500.0,0.00025687,2]
[366728501,1750421456073,-150.0,0.00025687,2]
[366728502,1750421456083,-500.0,0.00025687,2]
[366728503,1750421456093,-150.0,0.00025687,2]
[366728504,1750421456103,-500.0,0.00025687,2]
[366728505,1750421456113,-151.0,0.0002569,7]
[366728506,1750421456124,-151.0,0.0002569,5]
[366728507,1750421456134,-151.0,0.00025699,7]
[366728508,1750421456144,-151.363148,0.00025699,7]
[366728509,1750421456156,-151.0,0.00025699,7]
[366728510,1750421456166,-151.299043,0.00025699,7]
[366728511,1750421456176,-151.0,0.00025699,7]
[366728512,1750421456186,-151.0,0.00025699,7]
[366728513,1750421456198,-1754.97959,0.000257,3]
[366728514,1750421456209,-151.0,0.00025709,7]
[366728515,1750421456221,-151.0,0.00025709,7]
[366728516,1750421456231,-284.331361,0.00025709,7]
[366728517,1750421456242,-151.0,0.00025709,7]
[366728518,1750421456252,-153.732913,0.00025709,7]
[366728519,1750421456263,-2347.87260389,0.00025715,2]
[366728520,1750421456273,-150.0,0.00025715,2]
[366728521,1750421456284,-500.0,0.00025715,2]
[366728522,1750421456295,-200.0,0.00025715,2]
[366728523,1750421456305,-200.0,0.00025715,2]
[366728524,1750421456316,-150.0,0.00025715,2]
[366728525,1750421456327,-200.0,0.00025715,2]
[366728526,1750421456338,-834.11677829,0.00025719,7]
[366728527,1750421456348,-151.0,0.0002572,7]
[366728528,1750421456359,-151.0,0.0002572,7]
[366728529,1750421456370,-151.0,0.0002572,7]
[366728530,1750421456381,-166.299062,0.0002572,7]
[366728531,1750421456392,-151.0,0.0002572,5]
[366728532,1750421456402,-251.0,0.0002572,5]
[366728533,1750421456416,-151.0,0.0002572,7]
[366728534,1750421456427,-151.0,0.0002572,7]
[366728535,1750421456437,-151.0,0.0002572,7]
[366728536,1750421456448,-151.0,0.0002572,7]
[366728537,1750421456459,-157.786799,0.0002572,7]
[366728538,1750421456469,-157.786799,0.0002572,7]
[366728539,1750421456481,-308.64,0.00025729,2]
[366728540,1750421456492,-500.0,0.00025729,4]
[366728541,1750421456745,-151.0,0.00025729,7]
[366728542,1750421456758,-169.169003,0.00025729,7]
[366728543,1750421456769,-169.169003,0.00025729,7]
[366728544,1750421456779,-151.0,0.00025729,7]
[366728545,1750421456790,-151.0,0.00025729,7]
[366728546,1750421456801,-219.103365,0.00025729,7]
[366728547,1750421456811,-219.103365,0.00025729,7]
[366728548,1750421456821,-151.0,0.00025729,7]
[366728549,1750421456831,-151.0,0.00025729,7]
[366728550,1750421456841,-151.0,0.00025729,7]
[366728551,1750421456851,-151.0,0.00025729,7]
[366728552,1750421456862,-401.794605,0.00025729,7]
[366728553,1750421456872,-401.794605,0.00025729,7]
[366728554,1750421456882,-3833.14467372,0.0002573,5]
[366728555,1750421456897,-12849.46633108,0.0002573,5]
[366728556,1750421456908,-151.0,0.0002573,7]
[366728557,1750421456918,-151.0,0.0002573,7]
[366728558,1750421456928,-490.0,0.0002573,4]
[366728559,1750421456939,-490.0,0.0002573,4]
[366728560,1750421456948,-490.0,0.0002573,4]
[366728561,1750421456958,-490.0,0.0002573,4]
[366728562,1750421456968,-490.0,0.0002573,4]
[366728563,1750421456978,-515.98,0.0002573,4]
[366728564,1750421456987,-493.71019269,0.0002573,4]
[366728565,1750421456997,-490.0,0.0002573,4]
[366728566,1750421457007,-490.0,0.0002573,4]
[366728567,1750421457017,-490.0,0.0002573,4]
[366728568,1750421457026,-490.0,0.0002573,4]
[366728569,1750421457036,-490.0,0.0002573,4]
[366728570,1750421457045,-490.0,0.0002573,4]
[366728571,1750421457055,-490.0,0.0002573,4]
[366728572,1750421457066,-490.0,0.0002573,4]
[366728573,1750421457076,-590.1,0.0002573,4]
[366728574,1750421457085,-490.0,0.0002573,4]
[366728575,1750421457095,-490.0,0.0002573,4]
[366728576,1750421457105,-636.12,0.0002573,4]
[366728577,1750421457114,-568.22,0.0002573,4]
[366728578,1750421457124,-490.0,0.0002573,4]
[366728579,1750421457134,-490.0,0.0002573,4]
[366728580,1750421457143,-199.8,0.0002573,4]
[366728581,1750421457152,-490.0,0.0002573,4]
[366728582,1750421457164,-490.0,0.0002573,4]
[366728583,1750421457173,-71.95308712,0.0002573,4]
[366728584,1750421457186,-975.33691288,0.0002573,4]
[366728585,1750421457196,-490.0,0.0002573,4]
[366728586,1750421457206,-490.0,0.0002573,4]
[366728587,1750421457216,-490.0,0.0002573,4]
[366728588,1750421457225,-808.0,0.0002573,4]
[366728589,1750421457235,-490.0,0.0002573,4]
[366728590,1750421457245,-490.0,0.0002573,4]
[366728591,1750421457255,-490.0,0.0002573,4]
[366728592,1750421457264,-490.0,0.0002573,4]
[366728593,1750421457274,-490.0,0.0002573,4]
[366728594,1750421457284,-490.0,0.0002573,4]
[366728595,1750421457294,-490.0,0.0002573,4]
[366728596,1750421457304,-490.0,0.0002573,4]
[366728597,1750421457314,-490.0,0.0002573,4]
[366728598,1750421457324,-2051.07,0.0002573,4]
[366728599,1750421457334,-490.0,0.0002573,4]
[366728600,1750421457344,-490.0,0.0002573,4]
[366728601,1750421457353,-505.87,0.0002573,4]
[366728602,1750421457363,-564.27,0.0002573,4]
[366728603,1750421457373,-490.0,0.0002573,4]
[366728604,1750421457383,-727.65,0.0002573,4]
[366728605,1750421457393,-490.0,0.0002573,4]
[366728606,1750421457403,-490.0,0.0002573,4]
[366728607,1750421457414,-362.18,0.0002573,4]
[366728608,1750421457424,-490.0,0.0002573,4]
[366728609,1750421457433,-490.0,0.0002573,4]
[366728610,1750421457443,-490.0,0.0002573,4]
[366728611,1750421457453,-490.0,0.0002573,4]
[366728612,1750421457463,-490.0,0.0002573,4]
[366728613,1750421457473,-490.0,0.0002573,4]
[366728614,1750421457482,-490.0,0.0002573,4]
[366728615,1750421457492,-490.0,0.0002573,4]
[366728616,1750421457502,-490.0,0.0002573,4]
[366728617,1750421457511,-198.67946643,0.0002573,4]
[366728618,1750421457521,-490.0,0.0002573,4]
[366728619,1750421457531,-1876.0994294,0.0002573,3]
[366728620,1750421457542,-558.35,0.0002573,4]
[366728621,1750421457552,-490.0,0.0002573,4]
[366728622,1750421457562,-490.0,0.0002573,4]
[366728623,1750421457572,-490.0,0.0002573,4]
[366728624,1750421457582,-490.0,0.0002573,4]
[366728625,1750421457591,-490.0,0.0002573,4]
[366728626,1750421457602,-490.0,0.0002573,4]
[366728627,1750421457612,-562.93,0.0002573,4]
[366728628,1750421457622,-490.0,0.0002573,4]
[366728629,1750421457632,-490.0,0.0002573,4]
[366728630,1750421457641,-195.9400678,0.0002573,4]
[366728631,1750421457651,-490.0,0.0002573,4]
[366728632,1750421457662,-490.0,0.0002573,4]
[366728633,1750421457671,-490.0,0.0002573,4]
[366728634,1750421457681,-490.0,0.0002573,4]
[366728635,1750421457691,-490.0,0.0002573,4]
[366728636,1750421457701,-580.81,0.0002573,4]
[366728637,1750421457713,-490.0,0.0002573,4]
[366728638,1750421457723,-490.0,0.0002573,4]
[366728639,1750421457733,-718.35,0.0002573,4]
[366728640,1750421457744,-1146.27,0.0002573,4]
[366728641,1750421457755,-504.23,0.0002573,4]
[366728642,1750421457765,-748.22,0.0002573,4]
[366728643,1750421457775,-490.0,0.0002573,4]
[366728644,1750421457784,-490.0,0.0002573,4]
[366728645,1750421457794,-490.0,0.0002573,4]
[366728646,1750421457804,-490.0,0.0002573,4]
[366728647,1750421457813,-279.6,0.0002573,4]
[366728648,1750421457823,-490.0,0.0002573,4]
[366728649,1750421457833,-490.0,0.0002573,4]
[366728650,1750421457843,-382.39,0.0002573,4]
[366728651,1750421457852,-784.53,0.0002573,4]
[366728652,1750421457862,-151.0,0.00025731,7]
[366728653,1750421457872,-264.43107,0.00025731,7]
[366728654,1750421457882,-151.0,0.00025731,7]
[366728655,1750421457892,-152.379448,0.00025731,7]
[366728656,1750421457901,-194.767111,0.00025731,7]
[366728657,1750421457913,-194.767111,0.00025731,7]
[366728658,1750421457922,-151.0,0.00025731,7]
[366728659,1750421457932,-152.114809,0.00025731,7]
[366728660,1750421457941,-151.0,0.00025731,7]
[366728661,1750421457951,-151.0,0.00025731,7]
[366728662,1750421457961,-151.0,0.00025731,7]
[366728663,1750421457970,-661.944522,0.00025731,7]
[366728664,1750421457981,-661.944522,0.00025731,7]
[366728665,1750421457991,-151.0,0.00025731,7]
[366728666,1750421458001,-151.0,0.00025731,7]
[366728667,1750421458010,-1129.363233,0.00025731,7]
[366728668,1750421458020,-152.627744,0.00025731,7]
[366728669,1750421458030,-151.0,0.00025731,7]
[366728670,1750421458040,-647.264905,0.00025731,7]
[366728671,1750421458049,-647.264905,0.00025731,7]
[366728672,1750421458059,-672.663527,0.00025731,7]
[366728673,1750421458069,-672.663527,0.00025731,7]
[366728674,1750421458078,-2814.1491441,0.00025731,3]
[366728675,1750421458088,-490.0,0.00025738,4]
[366728676,1750421458098,-491.82850175,0.00025738,4]
[366728677,1750421458108,-419.20853534,0.00025738,4]
[366728678,1750421458118,-490.0,0.00025738,4]
[366728679,1750421458127,-490.0,0.00025738,4]
[366728680,1750421458138,-490.0,0.00025738,4]
[366728681,1750421458147,-543.26,0.00025738,4]
[366728682,1750421458158,-490.0,0.00025738,4]
[366728683,1750421458168,-490.0,0.00025738,4]
[366728684,1750421458178,-616.25,0.00025738,4]
[366728685,1750421458188,-490.0,0.00025738,4]
[366728686,1750421458198,-490.0,0.00025738,4]
[366728687,1750421458208,-490.0,0.00025738,4]
[366728688,1750421458218,-490.0,0.00025738,4]
[366728689,1750421458228,-2635.79,0.00025738,4]
[366728690,1750421458237,-490.0,0.00025738,4]
[366728691,1750421458247,-490.0,0.00025738,4]
[366728692,1750421458257,-490.0,0.00025738,4]
[366728693,1750421458267,-490.0,0.00025738,4]
[366728694,1750421458276,-490.0,0.00025738,4]
[366728695,1750421458286,-490.0,0.00025738,4]
[366728696,1750421458296,-490.0,0.00025738,4]
[366728697,1750421458305,-490.0,0.00025738,4]
[366728698,1750421458316,-1524.53,0.00025738,4]
[366728699,1750421458325,-181.59,0.00025738,4]
[366728700,1750421458335,-490.0,0.00025738,4]
[366728701,1750421458344,-490.0,0.00025738,4]
[366728702,1750421458355,-775.92,0.00025738,4]
[366728703,1750421458365,-490.0,0.00025738,4]
[366728704,1750421458375,-174.69,0.00025738,4]
[366728705,1750421458385,-490.0,0.00025738,4]
[366728706,1750421458396,-490.0,0.00025738,4]
[366728707,1750421458407,-490.0,0.00025738,4]
[366728708,1750421458417,-192.63,0.00025738,4]
[366728709,1750421458426,-490.0,0.00025738,4]
[366728710,1750421458436,-1070.15,0.00025738,4]
[366728711,1750421458445,-490.0,0.00025738,4]
[366728712,1750421458455,-490.0,0.00025738,4]
[366728713,1750421458464,-490.0,0.00025738,4]
[366728714,1750421458474,-490.0,0.00025738,4]
[366728715,1750421458483,-490.0,0.00025738,4]
[366728716,1750421458493,-490.0,0.00025738,2]
[366728717,1750421458503,-490.0,0.00025738,4]
[366728718,1750421458512,-1384.12,0.00025738,4]
[366728719,1750421458522,-697.44,0.00025738,4]
[366728720,1750421458531,-1442.62,0.00025738,2]
[366728721,1750421458542,-490.0,0.00025738,2]
[366728722,1750421458552,-490.0,0.00025738,4]
[366728723,1750421458561,-850.66,0.00025738,4]
[366728724,1750421458571,-490.0,0.00025738,4]
[366728725,1750421458581,-490.0,0.00025739,4]